Cogmind - Beta 15 @@@ ROGUE MODE // 2025.05.07 @ 12:24:18 Player: Minty Result: Destroyed by Y-64 Sentinel with KE Penetrator Performance ------------- Evolutions (6) 3000 Regions Visited (9) 1800 Robots Destroyed (77) 385 Value Destroyed (2278) 2278 Prototype IDs (16) 320 Alien Tech Used (0) 0 Bonus (127) 127 TOTAL SCORE: 7910 Bonus ------- High Alert Combat Kills 28 Follower Combat Kills 114 Friendly Fire -15 Cogmind --------- Core Integrity 0/1150 Matter 285/300 Energy 79/100 System Corruption 17% Temperature Cool (0) Movement Core (50) Location -4/Extension Parts ------- > --- POWER (1) -------- (None) > --- PROPULSION (6) --- (None) > --- UTILITY (9) ------ Enhanced Optical Array Improved Signal Interpreter Launcher Guidance Computer Advanced System Shield > --- WEAPON (3) ------- (None) > --- INVENTORY (5) ---- Myomer Leg Myomer Leg Heavy Disruptor Cannon Advanced Plasma Cannon Peak State ------------ > --- POWER ------------ Fission Core > --- PROPULSION ------- Cooled Airjet Cooled Airjet Cooled Airjet Cooled Airjet Gyrokinetic Inverter Cooled Gravmag System > --- UTILITY ---------- Power Amplifier Small Storage Unit Enhanced Optical Array Advanced Sensor Array Improved Signal Interpreter Utility Shielding Advanced Shield Generator Hacking Suite Hacking Suite > --- WEAPON ----------- Heavy Tesla Rifle Cooled Pulse Rifle Advanced Plasma Cannon > --- INVENTORY -------- Improved Sensor Array Improved Signal Interpreter Improved EM Pulse Cannon Heavy Disruptor Cannon Improved Grenade Launcher Improved Grenade Launcher Heavy Rocket Launcher [Rating: 92] Favorites ----------- Power Ion Engine Engine Ion Engine Power Core Fission Core Propulsion Cooled Airjet Treads Light Treads Leg Aluminum Leg Wheel Wheel Hover Unit Cooled Airjet Flight Unit Flight Unit Utility Small Storage Unit Device Advanced Sensor Array Storage Small Storage Unit Processor Improved Signal Interpreter Hackware Hacking Suite Protection Utility Shielding Weapon Precision Shock Rifle Energy Gun Precision Shock Rifle Energy Cannon Beam Cannon Ballistic Gun Light Assault Rifle Ballistic Cannon Flak Cannon Launcher Improved Grenade Launcher Slashing Weapon Blade Saw Build | -11 -10 -9 -9 -8 -7 -6 -5 -4 -4 ------- Run | Yrd Mat Mat Min Mat Fac Fac Fac Fac Ext Slots Evolved 12 | . . 2 . 2 2 2 2 2 . Power . | . . . . . . . . . . Propulsion 4 | . . . . 2 1 . . 1 . Utility 7 | . . 1 . . 1 2 2 1 . Weapon 1 | . . 1 . . . . . . . Parts Attached 92 | . 9 13 6 24 13 8 6 3 10 Power 7 | . 1 . 1 1 1 1 . . 2 Engine 5 | . 1 . 1 1 1 . . . 1 Core 2 | . . . . . . 1 . . 1 Reactor . | . . . . . . . . . . Propulsion 31 | . 2 6 2 10 6 1 1 1 2 Treads 6 | . . 2 . 2 1 . . . 1 Leg . | . . . . . . . . . . Wheel 9 | . 2 4 2 1 . . . . . Hover 9 | . . . . . 5 1 1 1 1 Flight 7 | . . . . 7 . . . . . Utility 24 | . 1 3 1 3 3 4 3 1 5 Device 9 | . 1 1 1 . . 2 2 1 1 Storage 1 | . . . . 1 . . . . . Processor 6 | . . . . 1 1 . 1 . 3 Hackware 5 | . . 1 . 1 1 1 . . 1 Protection 3 | . . 1 . . 1 1 . . . Artifact . | . . . . . . . . . . Weapon 30 | . 5 4 2 10 3 2 2 1 1 Energy Gun 10 | . 1 2 . 3 3 . . 1 . Energy Cannon 7 | . 2 1 . 1 . . 2 . 1 Ballistic Gun 5 | . 2 1 . 2 . . . . . Ballistic Cannon 2 | . . . . 2 . . . . . Launcher 5 | . . . 2 2 . 1 . . . Special Weapon . | . . . . . . . . . . Impact Weapon . | . . . . . . . . . . Slashing Weapon 1 | . . . . . . 1 . . . Piercing Weapon . | . . . . . . . . . . Special Melee Weapon . | . . . . . . . . . . Unidentified Prototypes 9 | . . . . 4 3 . 1 1 . Corrupted Parts 3 | . . . . . . 1 . . 2 System Corruption 22 | . . . . . . 9 . . 13 Parts Lost 43 | . 4 2 5 2 . 4 1 . 25 Power 5 | . 1 . . 1 . . . . 3 Propulsion 14 | . 1 1 1 1 . 1 1 . 8 Utility 12 | . . 1 1 . . 1 . . 9 Weapon 12 | . 2 . 3 . . 2 . . 5 Highest Loss Streak 7 | . 2 2 3 1 . 4 1 . 7 To Critical Strikes . | . . . . . . . . . . Average Backups 7 | . 6 6 7 7 7 7 7 7 5 Power . | . . . . . . 1 1 . . Propulsion 2 | . 5 5 5 2 . 1 . . . Utility 1 | . . . 1 2 2 1 1 2 1 Weapon 2 | . . . 1 2 3 3 4 4 3 Tool/Special . | . . . . . . . . . . Unused Backups 18 | . 9 1 . . 1 2 1 1 3 Power 3 | . 1 . . . . . 1 1 . Propulsion 6 | . 3 1 . . . . . . 2 Utility 2 | . 1 . . . 1 . . . . Weapon 7 | . 4 . . . . 2 . . 1 Tool/Special . | . . . . . . . . . . Average Slot Usage (%) 85 | . 88 93 82 88 94 94 95 94 61 Engine 6 | . 13 11 11 7 7 2 . . 1 Treads 1 | . . . . 6 . . . . . Leg 2 | . 12 . . . . . . . . Wheel 9 | . 15 20 21 18 . . . . . Hover 11 | . . . . . 22 29 29 28 22 Flight 2 | . . . . 9 12 . . . . Device 7 | . 13 9 12 . . 5 10 12 8 Storage 8 | . 14 11 11 9 7 6 5 5 4 Processor 6 | . . . . 8 5 6 10 10 13 Hackware 4 | . . . 2 3 15 7 11 10 1 Protection 3 | . . 5 5 5 1 11 5 5 1 Energy Gun 9 | . 6 10 11 9 17 17 5 7 3 Energy Cannon 3 | . 4 16 . 3 . . 2 7 1 Ballistic Gun 3 | . 8 5 5 2 3 . . . . Launcher 1 | . . . 1 2 . 1 . . 2 Peak Build Rating 92 | . 7 18 19 30 55 64 78 92 92 Average Rating 34 | . 6 12 13 21 46 58 69 85 56 On Entrance 35 | 6 6 7 18 9 28 55 56 78 92 Naked Turns . | . . . . . . . . . . Heaviest Build 43 | 13 17 22 24 31 24 34 43 43 42 Greatest Support 60 | 20 20 40 24 60 40 60 43 43 46 Greatest Overweight (x) 1 | . . 1 1 1 1 . . . 1 Average Overweight (x) . | . . . . . . . . . . Largest Inventory Capacity 8 | . 8 8 8 8 8 8 8 8 8 Average Capacity 7 | . 8 8 8 8 8 8 8 8 7 Most Carried 8 | . 8 8 8 8 8 8 8 8 8 Average Carried 7 | . 6 6 7 7 7 7 7 7 6 Final Capacity 8 | 8 8 8 8 8 8 8 8 8 5 Final Carried 8 | 6 7 8 8 8 8 7 8 8 5 Class Distribution -------------------- 33% | Mutant 14% | Hacker-Scout 12% | Scout 7% | Tank 6% | Gunner 5% | Skirmisher 5% | Scavenger-Gunner 4% | Hacker-Gunner 3% | Scavenger-Sprinter 3% | Hacker-Sprinter Dominant Class ---------------- Mutant | -10/Materials Tank | -9/Materials Mutant | -9/Mines Scavenger-Gunner | -8/Materials Hacker-Gunner | -7/Factory Skirmisher | -6/Factory Hacker-Scout | -5/Factory Hacker-Scout | -4/Factory Scout | -4/Extension Resources | -11 -10 -9 -9 -8 -7 -6 -5 -4 -4 ----------- Run | Yrd Mat Mat Min Mat Fac Fac Fac Fac Ext Matter Collected 2113 | 200 130 65 183 529 152 219 234 . 401 Remotely . | . . . . . . . . . . Salvage Created 2055 | . 325 115 161 549 152 264 133 . 356 Parts 123 | . 30 5 3 34 10 28 5 . 8 Haulers Intercepted 3 | . 1 . . 1 1 . . . . Recyclers Shooed 1 | . . . . 1 . . . . . Parts Field Recycled . | . . . . . . . . . . Retrieved Matter . | . . . . . . . . . . Parts Self-Destructed . | . . . . . . . . . . Prevented . | . . . . . . . . . . Kills | -11 -10 -9 -9 -8 -7 -6 -5 -4 -4 ------- Run | Yrd Mat Mat Min Mat Fac Fac Fac Fac Ext Combat Hostiles Destroyed 61 | . 10 2 10 14 . 14 . . 11 Guns 17 | . 9 1 3 3 . 1 . . . Cannons 3 | . 1 . . 2 . . . . . AOE 39 | . . . 7 9 . 12 . . 11 Classes Destroyed 15 | . 4 2 3 3 1 1 . . 1 Worker 6 | . 1 . 1 . 3 1 . . . Builder 1 | . . . . . 1 . . . . Tunneler 4 | . . . 2 1 . . 1 . . Hauler 3 | . 1 . . 1 1 . . . . Recycler 3 | . . . . 1 . . 1 . 1 Operator 4 | . . 1 . 1 . 1 . . 1 Watcher 1 | . . . . 1 . . . . . Swarmer 21 | . 5 . . 4 . 8 . . 4 Cutter 4 | . . . . . . 4 . . . Grunt 19 | . 5 . 3 6 . 1 . . 4 Duelist 1 | . . . . 1 . . . . . Sentry 8 | . . 2 . 3 . 1 . . 2 Demolisher 1 | . . . 1 . . . . . . Hunter 1 | . . . . . . . . . 1 Assembled 6 | . . . 6 . . . . . . Best Kill Streak 9 | . 6 1 7 6 3 9 2 . 4 Combat Bots Only 8 | . 6 1 6 5 . 8 . . 4 Max Kills in Single Turn 4 | . 1 1 3 3 2 4 1 . 4 Gunslinging . | . . . . . . . . . . Exploded 4 | . . . 3 3 . 4 . . 4 Melee . | . . . . . . . . . . Uniques/NPCs Destroyed . | . . . . . . . . . . Combat | -11 -10 -9 -9 -8 -7 -6 -5 -4 -4 -------- Run | Yrd Mat Mat Min Mat Fac Fac Fac Fac Ext Hostile Shots Fired 516 | . 94 22 30 79 9 82 . . 200 Missed 203 | . 28 8 9 32 6 41 . . 79 Hits 313 | . 66 14 21 47 3 41 . . 121 Melee 2 | . . . 1 . . 1 . . . Projectile 311 | . 66 14 20 47 3 40 . . 121 AOE 17 | . . . 15 . . 2 . . . Critical Strikes 15 | . . 1 . 1 . 2 . . 11 Actively Blocked 1 | . . . . . . . . . 1 Part Disruptions 1 | . . . . . . 1 . . . Actively Blocked 1 | . . . . . . 1 . . . Damage Taken 6024 | . 670 205 700 552 28 822 159 34 2854 Core 1788 | . 196 13 148 109 11 151 . . 1160 Absorbed by Shields 145 | . . . . . . . 55 12 78 Redirected to Shielding 177 | . . 7 6 9 . 117 5 5 28 Core Remaining (%) 77 | 100 21 . 59 80 98 82 100 . . Volleys Fired 168 | . 42 12 23 30 7 21 . . 33 Largest 3 | . 2 3 3 3 3 3 . . 3 Hottest 188 | . 120 180 135 183 130 146 . . 188 Shots Fired 305 | . 74 36 41 59 17 32 . . 46 Gun 200 | . 64 18 30 37 17 23 . . 11 Cannon 54 | . 10 18 . 14 . . . . 12 Launcher 51 | . . . 11 8 . 9 . . 23 Special . | . . . . . . . . . . Kinetic 75 | . 42 6 12 14 1 . . . . Thermal 123 | . 10 30 18 37 8 9 . . 11 Explosive 51 | . . . 11 8 . 9 . . 23 Electromagnetic 56 | . 22 . . . 8 14 . . 12 Robot Hit Streak 21 | . 16 7 5 11 17 13 . . 21 Robot Miss Streak 5 | . 4 3 3 5 1 5 . . 2 Penetration Max . | . . . . . . . . . . Secondary Targets 3 | . 2 . 1 . . . . . . Max Gunslinging Chain 1 | . 1 . 1 . . . . . . Shots Hit Robots 187 | . 47 22 22 36 11 20 2 . 27 Core Hits 177 | . 22 4 31 36 5 21 1 . 57 Critical Kills 1 | . 1 . . . . . . . . Critical Parts Destroyed . | . . . . . . . . . . Critical Strikes 10 | . 1 2 1 3 2 1 . . . Burn 7 | . . 2 1 3 1 . . . . Destroy 1 | . 1 . . . . . . . . Corrupt 1 | . . . . . 1 . . . . Sever 1 | . . . . . . 1 . . . Melee Attacks 5 | . . . . . . 2 3 . . Impact . | . . . . . . . . . . Slashing 5 | . . . . . . 2 3 . . Piercing . | . . . . . . . . . . Sneak Attacks 2 | . . . . . . . 2 . . Combat Hostiles . | . . . . . . . . . . Follow-up Attacks . | . . . . . . . . . . Damage Inflicted 7960 | . 506 385 1107 1520 286 1402 76 . 2678 Guns 2057 | . 400 194 314 375 286 294 . . 194 Cannons 585 | . 70 191 . 204 . . . . 120 Explosions 5142 | . 22 . 793 931 . 1072 . . 2324 Melee 112 | . . . . . . 36 76 . . Ramming 64 | . 14 . . 10 . . . . 40 Kinetic 744 | . 285 77 138 244 . . . . . Thermal 1809 | . 92 308 176 335 116 225 . . 557 Explosive 4471 | . . . 793 931 . 910 . . 1837 Electromagnetic 760 | . 115 . . . 170 231 . . 244 Impact . | . . . . . . . . . . Slashing 112 | . . . . . . 36 76 . . Piercing . | . . . . . . . . . . Highest Corruption 17 | . . . 1 . . 10 1 . 17 Average Corruption 4 | . . . 1 . . 1 1 . 6 Corruption Purged . | . . . . . . . . . . Corruption Blocked . | . . . . . . . . . . Effects 13 | . . . 2 . . . . . 11 Message Errors 1 | . . . . . . . . . 1 Matter Fused 4 | . . . . . . . . . 4 Heat Flow Errors 2 | . . . . . . . . . 2 Energy Discharges 3 | . . . 1 . . . . . 2 Parts Rejected 1 | . . . . . . . . . 1 Parts Fused 1 | . . . 1 . . . . . . Data Loss (minor) 1 | . . . . . . . . . 1 Overload Shots 7 | . . . . . 1 6 . . . Overflow Damage 251 | . . . . 9 . 90 5 . 147 Projectiles 9 | . . . . . . . . . 9 Explosions 237 | . . . . 9 . 90 . . 138 Melee 5 | . . . . . . . 5 . . Knockbacks 1 | . . . . 1 . . . . . Impact . | . . . . . . . . . . Kinetic 1 | . . . . 1 . . . . . Secondary . | . . . . . . . . . . Self-Inflicted Damage 377 | . 11 . 14 5 . 183 . . 164 Shots 11 | . 1 . 1 . . 4 . . 5 Rammed 11 | . 1 . . 1 . . . . 9 Targets Rammed 12 | . 2 . . 1 . . . . 9 Kicked 1 | . 1 . . . . . . . . Crushed . | . . . . . . . . . . Highest Temperature 485 | . 120 485 9 324 90 57 . . 277 Average Temperature 73 | . 41 225 3 83 25 22 . . 77 Received Heat Transfer 1115 | . 267 63 18 126 12 195 . . 434 Effects 3 | . . 3 . . . . . . . Matter Decay 1 | . . 1 . . . . . . . Damage (major) 2 | . . 2 . . . . . . . Siege Activations . | . . . . . . . . . . Martial Activations . | . . . . . . . . . . Shielding Activations . | . . . . . . . . . . Robots Disrupted . | . . . . . . . . . . Combat Hostiles . | . . . . . . . . . . Robots Corrupted 2 | . . . . . . 1 . . 1 Combat Hostiles 1 | . . . . . . 1 . . . Parts Fried 7 | . . . 2 . 2 1 . . 2 Impact Corruptions . | . . . . . . . . . . Robots Melted 1 | . . 1 . . . . . . . Combat Hostiles 1 | . . 1 . . . . . . . Parts Melted 7 | . 1 3 1 2 . . . . . Heat Transferred 3325 | . 198 851 518 814 296 274 . . 374 Parts Sabotaged . | . . . . . . . . . . Parts Stolen . | . . . . . . . . . . Parts Stripped . | . . . . . . . . . . Power Chain Reactions 1 | . 1 . . . . . . . . Alert | -11 -10 -9 -9 -8 -7 -6 -5 -4 -4 ------- Run | Yrd Mat Mat Min Mat Fac Fac Fac Fac Ext Maximum Alert Level 2 | . . . . 1 1 2 1 . 1 Low Security (%) 73 | . 100 100 100 64 57 55 . 100 60 Level 1 22 | . . . . 35 42 14 100 . 40 Level 2 3 | . . . . . . 30 . . . Level 3 . | . . . . . . . . . . Level 4 . | . . . . . . . . . . Level 5 . | . . . . . . . . . . High Security . | . . . . . . . . . . Max Security . | . . . . . . . . . . Peak Influence 627 | . 173 68 78 341 297 627 302 147 262 Initial 296 | . . 68 . 22 146 128 296 147 51 Average 143 | . 75 32 19 172 191 261 287 130 175 Influence Increases 2738 | . 359 80 142 529 266 649 56 . 657 Destroy 0b10 Robot/C 1260 | . 200 40 80 280 120 280 . . 260 Destroy 0b10 Robot/NC 105 | . 10 5 15 25 25 5 10 . 10 Destroy Leader 228 | . 32 20 10 64 32 50 . . 20 Allied During Kill 11 | . . . . . 2 . . . 9 Successful Hack 162 | . 23 . . 43 12 7 31 . 46 Select Force Hacks 30 | . . . . . . . . . 30 Disable Machine 270 | . 15 15 . . 15 180 15 . 30 Destroy Structure 402 | . 4 . 37 57 . 82 . . 222 Lose Combat Pursuer 270 | . 75 . . 60 60 45 . . 30 Influence Decreases 2696 | . 195 244 84 264 327 304 361 195 722 Entered New Map 965 | . . 96 . 36 177 134 311 155 56 Time Decay 1045 | . 166 128 47 198 90 130 40 40 206 Lost Part 406 | . 29 20 37 20 . 40 10 . 250 Lost Ally 130 | . . . . 10 60 . . . 60 Purge Threat 150 | . . . . . . . . . 150 Squads Dispatched 14 | . 1 1 . 3 2 2 . . 5 Investigation 8 | . 1 . . 2 1 1 . . 3 Extermination . | . . . . . . . . . . Reinforcement 6 | . . 1 . 1 1 1 . . 2 Assault . | . . . . . . . . . . Garrison . | . . . . . . . . . . Intercept . | . . . . . . . . . . Searches Triggered . | . . . . . . . . . . Construction Impeded 2 | . . . . . . . . . 2 Haulers Reinforced 1 | . . . . . 1 . . . . Active Scanning Responses . | . . . . . . . . . . Cargo Convoy Interrupts . | . . . . . . . . . . Stealth | -11 -10 -9 -9 -8 -7 -6 -5 -4 -4 --------- Run | Yrd Mat Mat Min Mat Fac Fac Fac Fac Ext Distress Signals 8 | . 2 . . 3 . . . . 3 Communications Jammed . | . . . . . . . . . . Distress Signals . | . . . . . . . . . . Times Spotted 128 | . 24 5 19 28 5 15 1 1 30 Peak Tracking Total 15 | . 5 2 15 6 3 6 1 1 11 Tactical Retreats 12 | . 3 . 1 3 3 1 . . 1 Traps | -11 -10 -9 -9 -8 -7 -6 -5 -4 -4 ------- Run | Yrd Mat Mat Min Mat Fac Fac Fac Fac Ext Traps Triggered 3 | . . . . . . . 1 1 1 Indirectly . | . . . . . . . . . . Trap Hack Attempts . | . . . . . . . . . . Triggered . | . . . . . . . . . . Disarmed . | . . . . . . . . . . Reprogrammed . | . . . . . . . . . . Reused . | . . . . . . . . . . Traps Extracted . | . . . . . . . . . . Installed . | . . . . . . . . . . Triggered . | . . . . . . . . . . Machines | -11 -10 -9 -9 -8 -7 -6 -5 -4 -4 ---------- Run | Yrd Mat Mat Min Mat Fac Fac Fac Fac Ext Machines Disabled 18 | . 1 1 . . 1 12 1 . 2 Max in Single Turn 5 | . 1 1 . . 1 5 1 . 1 Energy Cycler 1 | . . . . . . . . . 1 Machines Repaired . | . . . . . . . . . . Machines Dismantled . | . . . . . . . . . . Machines Sabotaged . | . . . . . . . . . . Overloaded Fab Kills . | . . . . . . . . . . Hacking | -11 -10 -9 -9 -8 -7 -6 -5 -4 -4 --------- Run | Yrd Mat Mat Min Mat Fac Fac Fac Fac Ext Machines Accessed 26 | . 3 2 . 6 2 1 2 1 9 Terminals 23 | . 3 2 . 5 1 1 2 1 8 Fabricators 1 | . . . . . 1 . . . . Repair Stations . | . . . . . . . . . . Recycling Units 1 | . . . . . . . . . 1 Scanalyzers 1 | . . . . 1 . . . . . Garrison Access . | . . . . . . . . . . Total Hacks 72 | . 12 4 . 14 5 3 7 1 26 Successful 36 | . 5 2 . 8 2 2 4 1 12 Failed 36 | . 7 2 . 6 3 1 3 . 14 Catastrophic 3 | . . . . . 1 . . . 2 Database Lockouts . | . . . . . . . . . . Manual 44 | . 8 2 . 9 4 3 2 . 16 Terminals 66 | . 12 4 . 12 2 3 7 1 25 Fabricators 3 | . . . . . 3 . . . . Repair Stations . | . . . . . . . . . . Recycling Units 1 | . . . . . . . . . 1 Scanalyzers 2 | . . . . 2 . . . . . Garrison Access . | . . . . . . . . . . Terminal Hacks 22 | . 4 2 . 3 . 1 4 1 7 Part Schematic 1 | . . . . . . 1 . . . Robot Analysis 1 | . . . . . . . 1 . . Prototype ID Bank 3 | . 1 . . . . . 2 . . Open Door 1 | . . . . . . . . . 1 Open DSF 1 | . . . . . . . . 1 . Level Access Points 1 | . . . . 1 . . . . . Branch Access Points 2 | . . 1 . 1 . . . . . Emergency Access Points 1 | . 1 . . . . . . . . Terminal Index 1 | . . . . . . . . . 1 Alert Level 2 | . 1 . . . . . . . 1 Unreport Threat 1 | . . . . . . . . . 1 Locate Traps 3 | . . . . 1 . . . . 2 Recall Investigation 1 | . . . . . . . . . 1 Registered Prototypes 1 | . . . . . . . 1 . . Zone Layout 2 | . 1 1 . . . . . . . Fabricator Hacks 1 | . . . . . 1 . . . . Build 1 | . . . . . 1 . . . . Repair Station Hacks . | . . . . . . . . . . Recycling Unit Hacks . | . . . . . . . . . . Scanalyzer 2 | . . . . 2 . . . . . Insert Component 1 | . . . . 1 . . . . . Analyze 1 | . . . . 1 . . . . . Garrison Access Hacks . | . . . . . . . . . . Unauthorized Hacks 11 | . 1 . . 3 1 1 . . 5 Terminals 10 | . 1 . . 3 1 1 . . 4 Assimilate 2 | . . . . 1 1 . . . . Botnet 5 | . . . . 1 . 1 . . 3 Detonate 1 | . 1 . . . . . . . . Disrupt 2 | . . . . 1 . . . . 1 Fabricators . | . . . . . . . . . . Repair Stations . | . . . . . . . . . . Recycling Units 1 | . . . . . . . . . 1 Tunnel 1 | . . . . . . . . . 1 Scanalyzers . | . . . . . . . . . . Garrison Access . | . . . . . . . . . . Data Cores Recovered . | . . . . . . . . . . Used . | . . . . . . . . . . Hacking Detections 23 | . 3 2 . 5 2 1 2 . 8 Full Trace Events 7 | . 1 . . 2 1 1 . . 2 Feedback Events 2 | . . . . . . . . . 2 Corruption 1 | . . . . . . . . . 1 Hackware Fried 1 | . . . . . . . . . 1 Feedback Blocked . | . . . . . . . . . . Robot Schematics Acquired . | . . . . . . . . . . Robots Built 3 | . . . . . 3 . . . . Authchips . | . . . . . . . . . . Time 67 | . . . . . 67 . . . . Total Robot Build Rating 12 | . . . . . 12 . . . . Part Schematics Acquired 2 | . . . . 1 . 1 . . . Parts Built . | . . . . . . . . . . Authchips . | . . . . . . . . . . Time . | . . . . . . . . . . Total Part Build Rating . | . . . . . . . . . . Parts Repaired . | . . . . . . . . . . Time . | . . . . . . . . . . Parts Recycled . | . . . . . . . . . . Recycled Matter . | . . . . . . . . . . Retrieved Matter . | . . . . . . . . . . Retrieved Components . | . . . . . . . . . . Parts Scanalyzed 1 | . . . . 1 . . . . . Part Schematics Acquired 1 | . . . . 1 . . . . . Parts Damaged . | . . . . . . . . . . Bothacking | -11 -10 -9 -9 -8 -7 -6 -5 -4 -4 ------------ Run | Yrd Mat Mat Min Mat Fac Fac Fac Fac Ext Used RIF Installer . | . . . . . . . . . . Robots Hacked . | . . . . . . . . . . Non-combat . | . . . . . . . . . . Combat . | . . . . . . . . . . Robot Hacks Applied . | . . . . . . . . . . Relay Couplers Released . | . . . . . . . . . . Fabnet Peak Effective % . | . . . . . . . . . . Robots Rewired 4 | . . . . . 1 . . . 3 Allies Hacked . | . . . . . . . . . . Hacks Repelled . | . . . . . . . . . . Allies | -11 -10 -9 -9 -8 -7 -6 -5 -4 -4 -------- Run | Yrd Mat Mat Min Mat Fac Fac Fac Fac Ext Total Allies 9 | . . . . 1 5 . . . 3 Largest Group 5 | . . . . 1 5 1 . . 3 Highest-Rated Group 135 | . . . . 10 133 23 . . 135 Highest-Rated Ally 51 | . . . . 10 30 23 . . 51 Total Orders . | . . . . . . . . . . Ally Attacks 38 | . . . . . 21 . . . 17 Total Damage 898 | . . . . . 567 . . . 331 Kills 8 | . . . . . 6 . . . 2 Allies Corrupted . | . . . . . . . . . . Allies Melted . | . . . . . . . . . . Intel | -11 -10 -9 -9 -8 -7 -6 -5 -4 -4 ------- Run | Yrd Mat Mat Min Mat Fac Fac Fac Fac Ext Active Infowar (turns) 1370 | . 416 49 20 . . 267 99 84 435 Optics 617 | . . . . . . . 98 84 435 Sensors 690 | . . . . . . 267 96 84 243 Structural 465 | . 416 49 . . . . . . . Seismic 20 | . . . 20 . . . . . . Robot Analysis Total 1 | . . . . . . . 1 . . Derelict Logs Recovered . | . . . . . . . . . . Drone Launches . | . . . . . . . . . . Drone Recoveries . | . . . . . . . . . . Exploration | -11 -10 -9 -9 -8 -7 -6 -5 -4 -4 ------------- Run | Yrd Mat Mat Min Mat Fac Fac Fac Fac Ext Turns Passed 2382 | . 436 263 182 410 197 276 99 84 435 Spaces Moved 2761 | 1 315 217 125 445 384 491 211 226 346 Core 76 | . . . . . . . . . 76 Treads 11 | . . 5 . 6 . . . . . Legs 124 | 1 123 . . . . . . . . Wheels 732 | . 192 212 125 203 . . . . . Hover 1438 | . . . . . 240 491 211 226 270 Flight 380 | . . . . 236 144 . . . . Fastest Speed 15 | 120 80 80 80 29 29 15 34 34 34 Average Speed 53 | 120 95 89 87 59 32 35 34 34 42 Slowest Speed 160 | 120 120 160 105 160 106 38 34 34 106 Overloaded Moves 25 | . . . . . . 25 . . . Propulsion Burnouts . | . . . . . . . . . . Robots Hopped 5 | . . . . 4 1 . . . . Potential Cave-ins . | . . . . . . . . . . Cave-ins Triggered 1 | . . . . . . . . . 1 Exploration Rate (%) 24 | 2 52 23 43 40 12 18 7 8 43 Regions Visited 9 Branch Regions 2 Pre-discovered Areas 1 | . . . . . . . . . 1 Known Exits Taken 6 | . . 1 . 1 1 1 1 1 . Unknown Exits Taken 3 | 1 1 . 1 . . . . . . Scrap Searched 1 | . . . 1 . . . . . . Spaces Dug 3 | . . . . . . 3 . . . Terrain Destroyed 467 | . 3 . 51 84 . 115 . . 214 Melee . | . . . . . . . . . . Projectile 13 | . . . . 5 . 4 . . 4 AOE 454 | . 3 . 51 79 . 111 . . 210 Terrain Rammed . | . . . . . . . . . . Walls Destroyed . | . . . . . . . . . . Machines Disabled . | . . . . . . . . . . Actions | -11 -10 -9 -9 -8 -7 -6 -5 -4 -4 --------- Run | Yrd Mat Mat Min Mat Fac Fac Fac Fac Ext Total 3389 | . 384 259 163 533 440 559 231 232 588 Wait 146 | . 2 3 4 2 13 13 . . 109 Move 2742 | . 314 216 124 436 381 490 210 225 346 Hop 5 | . . . . 4 1 . . . . Pick Up 43 | . 6 8 . 9 5 7 5 1 2 Fast Attach 42 | . 6 1 2 12 8 1 3 1 8 Attach 34 | . 2 5 2 4 4 6 3 1 7 Detach 16 | . 3 . 2 3 1 2 2 . 3 Swap 49 | . 1 8 5 14 4 11 2 2 2 Drop 54 | . 6 6 1 18 10 6 3 2 2 Fire 168 | . 42 12 23 30 7 21 . . 33 Melee 5 | . . . . . . 2 3 . . Ram 11 | . 1 . . 1 . . . . 9 Kick 1 | . 1 . . . . . . . . Crush . | . . . . . . . . . . Escape Stasis 13 | . . . . . . . . . 13 Rewire 60 | . . . . . 6 . . . 54 Trap . | . . . . . . . . . . Miscellaneous . | . . . . . . . . . . Route ------- -11/Scrapyard -10/Materials (discovered 3 exits: *Mat / [*Min] / [Sub]) -9/Materials (discovered 2 exits: *Min x2) -9/Mines -8/Materials (discovered 3 exits: *Fac x3) -7/Factory -6/Factory -5/Factory -4/Factory -4/Extension (discovered 1 exit: [*Res]) History --------- Turn | Location | Event 1 | -11/Scrapyard | Discovered new exit (range 0) 1 | -11/Scrapyard | Entered Materials 143 | -10/Materials | Discovered new exit (range 14) 236 | -10/Materials | Discovered new exit (range 6) 253 | -10/Materials | Core integrity fell below 50% 315 | -10/Materials | Build established: Mutant 318 | -10/Materials | Discovered new exit (range 7) 437 | -10/Materials | Entered another Materials area 437 | -9/Materials | Evolved 2 slots: Utility x1, Weapon x1 669 | -9/Materials | Discovered new exit (range 11) 682 | -9/Materials | Identified exit to Mines 700 | -9/Materials | Entered Mines 727 | -9/Mines | Assembled infested the area 732 | -9/Mines | Assisted by a Guerilla fighting off Assembled 830 | -9/Mines | Lost 3 parts (3w) 870 | -9/Mines | Discovered new exit (range 14) 882 | -9/Mines | Entered Materials 882 | -8/Materials | Evolved 2 slots: Propulsion x2 1216 | -8/Materials | Identified exit to Factory 1292 | -8/Materials | Entered Factory 1292 | -7/Factory | Evolved 2 slots: Propulsion x1, Utility x1 1391 | -7/Factory | Fabricated L-41 Fighter? 1471 | -7/Factory | Discovered new exit (range 15) 1480 | -7/Factory | Identified exit to Factory 1489 | -7/Factory | Entered another Factory area 1489 | -6/Factory | Accompanied by 1 ally 1489 | -6/Factory | Evolved 2 slots: Utility x2 1682 | -6/Factory | Destroyed 8 combat bots 1754 | -6/Factory | Discovered new exit (range 10) 1764 | -6/Factory | Identified exit to Factory 1765 | -6/Factory | System corruption reached 10% 1765 | -6/Factory | Entered another Factory area 1765 | -5/Factory | Evolved 2 slots: Utility x2 1777 | -5/Factory | Lost 4 parts (1n1u2w) 1841 | -5/Factory | Discovered new exit (range 21) 1847 | -5/Factory | Identified exit to Factory 1864 | -5/Factory | Entered another Factory area 1864 | -4/Factory | Evolved 2 slots: Propulsion x1, Utility x1 1926 | -4/Factory | Build established: Hacker-Scout 1929 | -4/Factory | Discovered new exit (range 22) 1948 | -4/Factory | Identified exit to Extension 1948 | -4/Factory | Entered Extension 1966 | -4/Extension | Disrupted transfer network 1971 | -4/Extension | Hacking Suite fried by hacking feedback 1974 | -4/Extension | Energy Cycler disabled 1979 | -4/Extension | Rescued a captive Derelict 1979 | -4/Extension | Rescued a captive Derelict 2062 | -4/Extension | Lost 6 parts (1p3u2w) 2275 | -4/Extension | Lost 4 parts (1n2u1w) 2287 | -4/Extension | Crushed by falling debris 2287 | -4/Extension | System corruption reached 10% 2324 | -4/Extension | Lost 5 parts (1p1n1u2w) 2363 | -4/Extension | Spotted B-86 Titan 2368 | -4/Extension | Discovered new exit (range 19) 2368 | -4/Extension | Spotted B-86 Titan 2369 | -4/Extension | Lost 3 allies 2370 | -4/Extension | Core integrity fell below 50% 2375 | -4/Extension | Extracted ID and sensor layout for unrecognized location from A7's data core 2378 | -4/Extension | Core integrity fell below 20% 2383 | -4/Extension | Destroyed by Y-64 Sentinel with KE Penetrator Last Messages --------------- 02373_ Penetrated by Slug. 02373_ Imp. Signal Interpreter destroyed. 02374_ Knocked back. 02374_ Critical hit (Burn: +37). 02375_ Acquired data core, extracted ID and sensor data for unrecognized location. 02375_ R-10 Processor destroyed. 02377_ Acquired 111 matter. 02377_ Penetrated by Slug. 02378_ Critical hit (Burn: +37). 02378_ Penetrated by Slug. 02378_ Acquired Corrupted Imp. Treads. 02378_ Integrated Corrupted Imp. Treads (+5). 02379_ Slug penetrates Y-64 Sentinel. 02379_ Penetrated by Slug. 02380_ Acquired Adv. System Shield. 02380_ Imp. Treads destroyed. 02380_ Knocked back. 02380_ Slug penetrates Machine. 02380_ Slug penetrates Wall. Map ----- +----------------------------------------------------+ | ????#= =% ! = !#?????????????????????????????? | | ????# = % %%[ #?????????????????????????????? | | ????# #?????????????????????????????? | | ????##### ####??????????????????????????? | | ????????## % ! %# #??????????????????????????? | | ?????????### ! # #?????????????????????????? | | ############ #" #%# ##?????????????????????????? | | ## #%## #??????????????????????????? | | ############ ## "%# #??????????????????????????? | | ?????????###/## # # ??????????????????????????? | | ?????????# # # #####?????????????????????????? | | ?????????# # # #?????????????????????????????? | | ?????????# / ### #?????????????????????????????? | | ?????????# #?# #??????????+??????????????????? | | ?????????#* = #?# #????????? #??????????????????? | | ?????????# #?# #????????? #??????????????????? | | ?????????# #?# #?????????%#??????????????????? | | ?????????#######?# #????????? #??????????????????? | | ?????????????????# #########?%#??????????????????? | | ???????????????###g##; ;; ;## ###????????????????? | | ???????????????#"" "" % " #????????????????? | | ???????????????# " " % % #????????????????? | | ???????????????# Y Y%[ ##???????????????? | | ???????????????# !=*% ;#???????????????? | | ??????????????## #####????????????? | | ???? R @ ??? | | ???? % C C ?? | | ??? w ??? | | ?? BB ??? | | ? BB % ??? | | ?############### BB ###############??? | | ???????????????# BB #????????????????? | | ???????????????# #????????????????? | | ???????????????# #????????????????? | | ???????????????# #????????????????? | | ???????????????######T# #######????????????????? | | ????????????????????### < #??????????????????????? | | ???????????????????????###???????????????????????? | | | | | | | | | | | | | | | | | | | | | | | | | +----------------------------------------------------+ Best States ------------- Heat Dissipation 53 Energy Generation 20 Energy Capacity 310 Matter Stores 300 Matter Capacity 300 Sight Range 22 Robot Scan Range 16 Terrain Scan Density 10 Power Amplification 20 Propulsion Shielding 66 Utility Shielding 33 Evasion (%) 64 Targeting Accuracy 8 Launcher Accuracy 40 Recoil Reduction 3 Offensive Hacking 20 Item Schematics ----------------- Imp. Grenade Launcher | -8/Materials | Scanalyzed Imp. Hacking Suite | -6/Factory | Hacked Robot Schematics ------------------ None Fabricated ------------ L-41 Fighter | x3 | -7/Factory | Preloaded Repaired ---------- Nothing Alien Tech Used ----------------- None Achievements -------------- None Challenges ------------ None Game ------ Seed MicrowarpShadeChronowheel Manual? 0 Play Time 00:32:51 Cumulative 1020.7 hours Start 2025.05.06 @ 22:49:48 End 2025.05.07 @ 12:24:18 Sessions 3 Manual Loads 0 Difficulty Rogue Special Mode None Game No. 1248 Rogue 966 Adventurer 124 Explorer 158 Win Type - Total 44 Types 31/0/8/3/1/0/0/1/0/0 Lore% 90 Gallery% 85 Achievement% 79 Wizard Run 0 Options --------- Layout 0 ASCII 0 Keyboard 1 Movement Numpad Keybinds 0 Fullscreen 2 Font 18/X11 Map View 76x50 Zoom Use 0% Tactical HUD 1 Map Filters NONE Filters NONE Steam 1 RUN: cf37cdb4-1dad-4c83-acf7-003e63727fe2